bitfinex/quotes_ETHUSD_20230103
["timestamp","ask_amount","ask_price","bid_price","bid_amount"]
[1672783901348,20.10194682,1212.3,1212.2,40.79867998]
[1672783901713,24.49878298,1212.3,1212.2,40.79867998]
[1672783901929,20.10194682,1212.3,1212.2,40.79867998]
[1672783902145,19.48195338,1212.3,1212.2,50.69802998]
[1672783902354,23.87878954,1212.3,1212.2,50.69802998]
[1672783902716,20.7917027,1212.3,1212.2,50.69802998]
[1672783903460,20.7917027,1212.3,1212.2,29.79867998]
[1672783905454,24.49878298,1212.3,1212.2,29.79867998]
[1672783905642,20.10194682,1212.3,1212.2,29.79867998]
[1672783905831,16.39486654,1212.3,1212.2,29.79867998]
[1672783906048,24.49878298,1212.3,1212.2,29.79867998]
[1672783906268,20.10194682,1212.3,1212.2,29.79867998]
[1672783908176,24.49878298,1212.3,1212.2,29.79867998]
[1672783909277,24.49878298,1212.3,1212.2,29.7965067]
[1672783920211,24.49878298,1212.3,1212.2,31.9196603]
[1672783920668,24.49878298,1212.3,1212.2,32.10952691]
[1672783920880,24.49878298,1212.3,1212.2,32.11074408]
[1672783921108,24.49878298,1212.3,1212.2,29.7965067]
[1672783925192,24.50238691,1212.3,1212.2,29.7965067]
[1672783925629,20.7917027,1212.3,1212.2,29.7965067]
[1672783926168,24.50254006,1212.3,1212.2,29.7965067]
[1672783927476,24.50254006,1212.3,1212.2,0.0984567]
[1672783927693,24.50256924,1212.3,1212.2,19.80219471]
[1672783927904,24.50256924,1212.3,1212.2,19.8971567]
[1672783928166,24.50256924,1212.3,1212.2,29.7965067]
[1672783929737,24.50256924,1212.3,1212.2,29.79276339]
[1672783931097,20.7917027,1212.3,1212.2,29.79276339]
[1672783931621,25.12502841,1212.3,1212.2,29.79276339]
[1672783931814,16.39486654,1212.3,1212.2,29.79276339]
[1672783932018,20.7917027,1212.3,1212.2,29.79276339]
[1672783932630,24.50413784,1212.3,1212.2,29.79276339]
[1672783932833,20.7917027,1212.3,1212.2,29.79276339]
[1672783933289,24.504116,1212.3,1212.2,29.79276339]
[1672783933526,20.7917027,1212.3,1212.2,29.79276339]
[1672783934946,24.50421515,1212.3,1212.2,29.79276339]
[1672783935168,20.7917027,1212.3,1212.2,29.79276339]
[1672783936028,24.50426538,1212.3,1212.2,29.79276339]
[1672783937076,20.7917027,1212.3,1212.2,29.79276339]
[1672783937921,24.503663,1212.3,1212.2,29.79276339]
[1672783949591,20.7917027,1212.3,1212.2,29.79276339]
[1672783949802,24.50439687,1212.3,1212.2,29.79276339]
[1672783954235,24.50439687,1212.3,1212.2,29.7888988]
[1672783954236,24.50213161,1212.3,1212.2,29.7888988]
[1672783955857,20.78943744,1212.3,1212.2,29.7888988]
[1672783956327,20.78943744,1212.3,1212.2,19.8895488]
[1672783957405,24.50325892,1212.3,1212.2,19.8895488]
[1672783958030,24.50328304,1212.3,1212.2,19.8895488]
[1672783959154,20.78943744,1212.3,1212.2,19.8895488]
[1672783960461,24.50331673,1212.3,1212.2,19.8895488]
[1672783961061,20.78943744,1212.3,1212.2,19.8895488]
[1672783964724,25.12276315,1212.3,1212.2,19.8895488]
[1672783964999,20.72592699,1212.3,1212.2,19.8895488]
[1672783966233,16.39260128,1212.3,1212.2,19.8895488]
[1672783966447,20.78943744,1212.3,1212.2,19.8895488]
[1672783966609,25.12276315,1212.3,1212.2,19.8895488]
[1672783966823,16.39260128,1212.3,1212.2,19.8895488]
[1672783967034,20.78943744,1212.3,1212.2,19.8895488]
[1672783967819,25.12276315,1212.3,1212.2,19.8895488]
[1672783968034,20.72592699,1212.3,1212.2,0.09496199]
[1672783968296,20.72592699,1212.3,1212.2,19.7987]
[1672783968543,20.72592699,1212.3,1212.2,19.89366199]
[1672783974390,20.72592699,1212.3,1212.2,19.84366199]
[1672783977464,16.39260128,1212.3,1212.2,19.84366199]
[1672783977696,20.78943744,1212.3,1212.2,19.84366199]
[1672783979733,25.12276315,1212.3,1212.2,19.84366199]
[1672783980086,20.72592699,1212.3,1212.2,19.84366199]
[1672783980300,20.92709837,1212.3,1212.2,19.84366199]
[1672783982511,25.32393453,1212.3,1212.2,19.84366199]
[1672783995223,25.32393453,1212.3,1212.2,19.84043208]
[1672784014564,20.99060882,1212.3,1212.2,19.84043208]
[1672784014780,25.32393453,1212.3,1212.2,19.84043208]
[1672784015215,20.92709837,1212.3,1212.2,19.84043208]
[1672784016382,20.92709837,1212.3,1212.2,19.83701857]
[1672784016760,25.32393453,1212.3,1212.2,19.83701857]
[1672784017687,20.92709837,1212.3,1212.2,19.83701857]
[1672784022790,25.32393453,1212.3,1212.2,19.83701857]
[1672784023402,20.92709837,1212.3,1212.2,19.83701857]
[1672784023641,25.32393453,1212.3,1212.2,19.83701857]
[1672784024495,20.92709837,1212.3,1212.2,19.83701857]
[1672784025450,25.32393453,1212.3,1212.2,29.73636857]
[1672784025760,20.92709837,1212.3,1212.2,19.83701857]
[1672784026389,25.32393453,1212.3,1212.2,19.83701857]
[1672784026755,16.59377266,1212.3,1212.2,19.83701857]
[1672784027124,25.32393453,1212.3,1212.2,19.83701857]
[1672784027355,20.92709837,1212.3,1212.2,19.83701857]
[1672784027923,16.59377266,1212.3,1212.2,19.83701857]
[1672784028171,20.99060882,1212.3,1212.2,19.83701857]
[1672784029793,25.32393453,1212.3,1212.2,19.83701857]
[1672784030008,20.92709837,1212.3,1212.2,19.83701857]
[1672784030266,25.32393453,1212.3,1212.2,9.93766857]
[1672784032112,20.92709837,1212.3,1212.2,9.93766857]
[1672784033221,25.32393453,1212.3,1212.2,9.93766857]
[1672784034222,20.92709837,1212.3,1212.2,9.93766857]
[1672784034432,25.32393453,1212.3,1212.2,9.93766857]
[1672784034916,20.92709837,1212.3,1212.2,9.93766857]
[1672784035298,25.32393453,1212.3,1212.2,19.83701857]
[1672784036352,25.32393453,1212.3,1212.2,9.93766857]
[1672784037571,25.32393453,1212.3,1212.2,9.93533985]
[1672784040262,18.20693453,1212.3,1212.2,0.09496199]
[1672784040483,5.859,1212.2,1212.1,0.00771809]
[1672784040690,33.48423893,1212.2,1212.1,0.00071809]
[1672784040893,5.0,1211.9,1211.7,0.08579596]
[1672784041102,4.95078934,1211.8,1211.5,20.9778516]
[1672784041319,5.56911458,1211.6,1211.5,21.84001969]
[1672784041632,5.63111458,1211.6,1211.5,35.38087566]
[1672784041845,1.92050049,1211.6,1211.5,35.125297]
[1672784042073,4.33166253,1211.6,1211.5,41.95964486]
[1672784042428,5.62507401,1211.7,1211.6,5.0]
[1672784042723,1.91855629,1211.7,1211.6,34.49663298]
[1672784042893,1.85666667,1211.7,1211.6,40.0731136]
[1672784043102,4.3317972,1211.7,1211.6,40.0731136]
[1672784043316,4.3317972,1211.7,1211.6,36.14853539]
[1672784043524,4.3317972,1211.7,1211.6,39.14853539]
[1672784044172,4.3317972,1211.7,1211.6,49.05278539]
[1672784044389,4.3317972,1211.7,1211.6,49.54795711]
[1672784044714,1.85663516,1211.7,1211.6,47.49899754]
[1672784046251,6.35397593,1211.7,1211.6,9.13965234]
[1672784046462,7.03450281,1211.7,1211.6,8.06090578]
[1672784046711,2.53716204,1211.7,1211.6,17.96515578]
[1672784046920,4.32614283,1211.7,1211.6,37.77365578]
[1672784047088,1.85098079,1211.7,1211.6,37.77365578]
[1672784047559,1.85098079,1211.7,1211.6,43.64265342]
[1672784048367,8.88236095,1211.8,1211.6,43.64265342]
[1672784048573,8.87836095,1211.8,1211.7,15.49773406]
[1672784048834,8.87836095,1211.8,1211.7,45.27605406]
[1672784049708,9.47405278,1211.8,1211.7,45.27605406]
[1672784051180,6.99889074,1211.8,1211.7,45.27605406]
[1672784051607,2.50867262,1211.8,1211.7,45.27605406]
[1672784051881,0.59569183,1211.8,1211.7,51.14428839]
[1672784052085,0.59569183,1211.8,1211.7,45.27605406]
[1672784052279,2.44667262,1211.8,1211.7,45.27605406]
[1672784053143,6.94440668,1211.8,1211.7,45.27605406]
[1672784053300,7.00640668,1211.8,1211.7,45.27605406]
[1672784053769,7.00640668,1211.8,1211.7,15.56141528]
[1672784053978,7.00640668,1211.8,1211.7,45.27173528]
[1672784056131,7.00640668,1211.8,1211.7,40.77832]
[1672784056340,8.26323731,1211.8,1211.7,45.27605406]
[1672784058705,8.26323731,1211.8,1211.7,40.77832]
[1672784059777,8.26323731,1211.8,1211.7,45.27605406]
[1672784059995,7.00640668,1211.8,1211.7,45.27605406]
[1672784060714,7.00640668,1211.8,1211.7,25.46917406]
[1672784060908,7.00640668,1211.8,1211.7,35.37261406]
[1672784061436,7.00640668,1211.8,1211.7,45.27605406]
[1672784062279,7.00640668,1211.8,1211.7,35.37261406]
[1672784062494,7.00640668,1211.8,1211.7,25.46917406]
[1672784064378,7.00640668,1211.8,1211.7,20.97144]
[1672784065083,7.00640668,1211.8,1211.7,9.97144]
[1672784065443,7.00640668,1211.8,1211.7,19.87488]
[1672784065695,7.00640668,1211.8,1211.7,9.97144]
[1672784067649,7.00640668,1211.8,1211.7,19.87488]
[1672784068176,9.48156872,1211.8,1211.7,9.97144]
[1672784068594,9.48156872,1211.8,1211.7,19.87488]
[1672784068796,9.48156872,1211.8,1211.7,29.77832]
[1672784069026,9.48156872,1211.8,1211.7,19.87488]
[1672784069289,9.48156872,1211.8,1211.7,9.97144]
[1672784069759,9.48156872,1211.8,1211.7,19.87488]
[1672784070592,9.48156872,1211.8,1211.7,9.97144]
[1672784070804,10.73862599,1211.8,1211.7,0.068]
[1672784071010,10.73862599,1211.8,1211.7,9.90344]
[1672784071259,10.73862599,1211.8,1211.7,0.068]
[1672784071493,10.73862599,1211.8,1211.6,33.87555]
[1672784071808,6.34871485,1211.7,1211.6,43.77944]
[1672784072126,6.41071485,1211.7,1211.6,43.77944]
[1672784075197,8.88587689,1211.7,1211.6,43.77944]
[1672784076474,8.88587689,1211.7,1211.6,53.68369]
[1672784077737,10.11763365,1211.7,1211.6,53.68369]
[1672784079897,7.64247161,1211.7,1211.6,53.68369]
[1672784082180,7.64247161,1211.7,1211.6,53.63369]
[1672784082995,8.96366799,1211.7,1211.6,39.68369]
[1672784083202,8.96366799,1211.7,1211.6,0.068]
[1672784083203,9.59367349,1211.7,1211.6,0.068]
[1672784083415,9.58848923,1211.7,1211.5,29.7878616]
[1672784083678,4.49773406,1211.6,1211.5,29.7878616]
[1672784083842,5.90635639,1211.6,1211.5,29.7878616]
[1672784084060,5.96835639,1211.6,1211.5,29.7878616]
[1672784084495,9.67591518,1211.6,1211.5,29.7878616]
[1672784084710,7.64873255,1211.6,1211.5,29.7878616]
[1672784085766,4.55973406,1211.6,1211.5,29.7878616]
[1672784085972,4.49773406,1211.6,1211.5,29.7878616]
[1672784086626,7.5857818,1211.6,1211.5,29.7878616]
[1672784086797,8.9158355,1211.6,1211.5,29.7878616]
[1672784096654,7.6477818,1211.6,1211.5,29.7878616]
[1672784100711,7.6477818,1211.6,1211.5,34.28559566]
[1672784100895,7.6477818,1211.6,1211.5,29.7878616]
[1672784104867,7.6477818,1211.6,1211.5,29.78467978]
[1672784105104,7.64480997,1211.6,1211.5,29.78467978]
[1672784109801,7.64480997,1211.6,1211.5,9.97503978]
[1672784110015,19.43655417,1211.6,1211.5,0.07036978]
[1672784110155,9.53230417,1211.6,1211.5,0.00236978]
[1672784110626,9.53230417,1211.6,1211.5,9.90743978]
[1672784110784,9.53230417,1211.6,1211.5,9.97543978]
[1672784112207,9.53230417,1211.6,1211.5,19.88050978]
[1672784112426,9.53230417,1211.6,1211.5,0.07036978]
[1672784112572,29.34080417,1211.6,1211.5,0.00236978]
[1672784112786,19.43655417,1211.6,1211.5,0.00236978]
[1672784113438,9.53230417,1211.6,1211.5,0.00236978]
[1672784114064,5.82474538,1211.6,1211.5,0.00236978]
[1672784114907,10.15613472,1211.6,1211.5,0.00236978]
[1672784115132,20.06038472,1211.6,1211.5,0.00236978]
[1672784115956,15.72899538,1211.6,1211.5,0.00236978]
[1672784116503,19.43404463,1211.6,1211.5,0.00236978]
[1672784122506,15.72899538,1211.6,1211.5,0.00236978]
[1672784123942,19.43596197,1211.6,1211.5,0.00236978]
[1672784124411,15.72899538,1211.6,1211.5,0.00236978]
[1672784124627,19.43589497,1211.6,1211.5,0.00236978]
[1672784124845,19.43789497,1211.6,1211.5,0.00236978]
[1672784125008,19.43589497,1211.6,1211.5,0.00236978]
[1672784125466,0.00062492,1211.5,1211.4,11.07824544]
[1672784125683,8.20533148,1211.5,1211.4,0.07824544]
[1672784125905,10.21128794,1211.5,1211.4,0.01024544]
[1672784128299,20.11635794,1211.5,1211.4,0.01024544]
[1672784129205,20.11862434,1211.5,1211.4,0.01024544]
[1672784132696,10.21355434,1211.5,1211.4,0.01024544]
[1672784139060,10.21355434,1211.5,1211.3,19.86553425]
[1672784139214,7.58510108,1211.4,1211.3,23.87281623]
[1672784139422,7.64710108,1211.4,1211.3,19.86553425]
[1672784139987,7.64710108,1211.4,1211.3,9.95915425]
[1672784140160,4.55973406,1211.4,1211.3,0.05283425]
[1672784140368,7.58515101,1211.4,1211.2,52.41525162]
[1672784140603,6.96764301,1211.3,1211.2,48.20261749]
[1672784140852,7.02964301,1211.3,1211.2,48.20261749]
[1672784140995,10.11705996,1211.3,1211.2,48.20261749]
[1672784141202,5.6193259,1211.3,1211.2,48.20261749]
[1672784141416,2.53190895,1211.3,1211.2,48.20261749]
[1672784141776,6.96764301,1211.3,1211.2,48.20261749]
[1672784141997,7.02964301,1211.3,1211.2,48.20261749]
[1672784142740,10.11705996,1211.3,1211.2,48.20261749]
[1672784142963,5.6193259,1211.3,1211.2,48.20261749]
[1672784143309,2.53190895,1211.3,1211.2,48.20261749]
[1672784143572,6.96764301,1211.3,1211.2,48.20261749]
[1672784143795,7.02964301,1211.3,1211.2,48.20261749]
[1672784144448,1.91468463,1211.3,1211.2,58.11013749]
[1672784144666,1.85268463,1211.3,1211.2,58.11013749]
[1672784144828,4.32259358,1211.3,1211.2,58.11013749]
[1672784147018,1.85268463,1211.3,1211.2,58.11013749]
[1672784147275,6.35041869,1211.3,1211.2,58.11013749]
[1672784147515,6.41241869,1211.3,1211.2,58.11013749]
[1672784147654,8.88232764,1211.3,1211.2,58.11013749]
[1672784148013,1.91468463,1211.3,1211.2,58.11013749]
[1672784148228,1.85268463,1211.3,1211.2,58.11013749]
[1672784148588,8.82032764,1211.3,1211.2,58.11013749]
[1672784148813,1.91468463,1211.3,1211.2,58.11013749]
[1672784149023,4.32259358,1211.3,1211.2,58.11013749]
[1672784149642,8.82032764,1211.3,1211.2,58.11013749]
[1672784149854,4.38459358,1211.3,1211.2,58.11013749]
[1672784150113,4.32259358,1211.3,1211.2,58.11013749]
[1672784150487,8.82032764,1211.3,1211.2,58.11013749]
[1672784150699,8.88232764,1211.3,1211.2,58.11013749]
[1672784151237,4.38459358,1211.3,1211.2,58.11013749]
[1672784151447,8.82032764,1211.3,1211.2,58.11013749]
[1672784151677,4.38459358,1211.3,1211.2,58.11013749]
[1672784151842,4.32259358,1211.3,1211.2,58.11013749]
[1672784152053,8.82032764,1211.3,1211.2,58.11013749]
[1672784152316,8.88232764,1211.3,1211.2,58.11013749]
[1672784152848,4.38459358,1211.3,1211.2,58.11013749]
[1672784153062,4.32259358,1211.3,1211.2,58.11013749]
[1672784153847,8.82032764,1211.3,1211.2,58.11013749]
[1672784154207,8.88232764,1211.3,1211.2,58.11013749]
[1672784154425,8.88390997,1211.3,1211.2,58.11013749]
[1672784154993,7.02964301,1211.3,1211.2,58.11013749]
[1672784159515,2.53190895,1211.3,1211.2,58.11013749]
[1672784159765,6.96764301,1211.3,1211.2,58.11013749]
[1672784159979,10.11705996,1211.3,1211.2,58.10806264]
[1672784160188,5.6193259,1211.3,1211.2,58.10806264]
[1672784162675,2.53190895,1211.3,1211.2,58.10806264]
[1672784162877,6.96764301,1211.3,1211.2,58.10806264]
[1672784163088,10.11705996,1211.3,1211.2,58.10806264]
[1672784163299,5.6193259,1211.3,1211.2,58.10806264]
[1672784164244,10.11705996,1211.3,1211.2,58.10806264]
[1672784164453,5.6193259,1211.3,1211.2,58.10806264]
[1672784165082,2.53190895,1211.3,1211.2,58.10806264]
[1672784165309,10.05505996,1211.3,1211.2,58.10806264]
[1672784165535,4.38704953,1211.3,1211.2,58.10806264]
[1672784165747,4.32504953,1211.3,1211.2,58.10806264]
[1672784166826,8.82278359,1211.3,1211.2,58.10806264]
[1672784166982,8.88478359,1211.3,1211.2,58.10806264]
[1672784168826,4.38704953,1211.3,1211.2,58.10806264]
[1672784168989,4.32504953,1211.3,1211.2,58.10806264]
[1672784169184,8.82278359,1211.3,1211.2,58.10806264]
[1672784169394,8.88478359,1211.3,1211.2,58.10806264]
[1672784171531,4.38704953,1211.3,1211.2,68.12395412]
[1672784171703,4.39082854,1211.4,1211.3,1.2297493]
[1672784171910,4.32482854,1211.4,1211.3,7.94889439]
[1672784172166,4.32482854,1211.4,1211.3,47.62856864]
[1672784172374,4.32482854,1211.4,1211.3,51.87386776]
[1672784173489,4.32482854,1211.4,1211.3,52.36903948]
[1672784173910,1.85491959,1211.4,1211.3,52.36903948]
[1672784184572,1.85491959,1211.4,1211.3,48.64989439]
[1672784185925,1.85491959,1211.4,1211.3,52.79875553]
[1672784192702,17.77428752,1211.5,1211.3,52.79875553]
[1672784192889,17.77028752,1211.5,1211.4,40.71767]
[1672784193104,8.88518752,1211.5,1211.4,43.77050425]
[1672784193356,8.88518752,1211.5,1211.4,53.67639425]
[1672784195509,7.03026793,1211.5,1211.4,53.67639425]
[1672784197847,10.11768488,1211.5,1211.4,53.67639425]
[1672784198133,2.53253387,1211.5,1211.4,53.67639425]
[1672784198507,6.96826793,1211.5,1211.4,53.67639425]
[1672784198652,7.03026793,1211.5,1211.4,53.67639425]
[1672784199297,10.11768488,1211.5,1211.4,53.67639425]
[1672784199502,5.61995082,1211.5,1211.4,53.67639425]
[1672784200817,6.24095195,1211.5,1211.4,53.67639425]
[1672784203802,10.73868601,1211.5,1211.4,53.67639425]
[1672784206139,6.24095195,1211.5,1211.4,53.67639425]
[1672784206347,10.73868601,1211.5,1211.4,53.67639425]
[1672784209853,8.26877706,1211.5,1211.4,53.67639425]
[1672784211284,8.26877706,1211.5,1211.4,57.35349197]
[1672784216576,10.743957,1211.5,1211.4,57.35349197]
[1672784220223,6.24622294,1211.5,1211.4,57.35349197]
[1672784220585,10.743957,1211.5,1211.4,57.37101159]
[1672784228422,10.74333208,1211.5,1211.4,57.37101159]
[1672784253629,7.65591513,1211.5,1211.4,57.37101159]
[1672784253843,10.74970227,1211.5,1211.4,57.37101159]
[1672784254156,10.74976625,1211.5,1211.4,57.37101159]
[1672784254575,7.65591513,1211.5,1211.4,57.37101159]
[1672784254953,10.74981828,1211.5,1211.4,57.37101159]
[1672784257543,7.65591513,1211.5,1211.4,57.37101159]
[1672784258104,10.74976027,1211.5,1211.4,57.37101159]
[1672784262173,10.75176027,1211.5,1211.4,57.36801159]
[1672784262359,10.75176027,1211.5,1211.4,57.37101159]
[1672784262360,10.74976027,1211.5,1211.4,57.37101159]
[1672784263097,10.74996077,1211.5,1211.4,57.37101159]
[1672784273284,11.36288763,1211.5,1211.4,61.50235311]
[1672784273488,6.86515357,1211.5,1211.4,57.82525539]
[1672784275062,3.15818107,1211.5,1211.4,57.82525539]
[1672784275273,7.59391513,1211.5,1211.4,57.82525539]
[1672784275535,7.65591513,1211.5,1211.4,57.82525539]
[1672784280218,7.65591513,1211.5,1211.4,46.82525539]
[1672784280400,7.65591513,1211.5,1211.4,57.82525539]
[1672784280770,11.36288763,1211.5,1211.4,57.82525539]
[1672784280997,3.15818107,1211.5,1211.4,57.82525539]
[1672784281290,7.59391513,1211.5,1211.4,57.82525539]
[1672784281545,7.65591513,1211.5,1211.4,57.82525539]
[1672784283593,11.36288763,1211.5,1211.4,57.82525539]
[1672784283800,6.86515357,1211.5,1211.4,57.82525539]
[1672784285380,3.15818107,1211.5,1211.4,57.82525539]
[1672784285589,7.59391513,1211.5,1211.4,57.82525539]
[1672784285802,7.65591513,1211.5,1211.4,57.82525539]
[1672784286167,11.36288763,1211.5,1211.4,57.82525539]
[1672784286341,6.86515357,1211.5,1211.4,57.82525539]
[1672784287284,3.15818107,1211.5,1211.4,57.82525539]
[1672784287496,7.59391513,1211.5,1211.4,57.82525539]
[1672784287708,7.65591513,1211.5,1211.4,57.82525539]
[1672784288176,11.36288763,1211.5,1211.4,57.82525539]
[1672784288320,6.86515357,1211.5,1211.4,57.82525539]
[1672784289497,3.15818107,1211.5,1211.4,57.82525539]
[1672784289705,7.59391513,1211.5,1211.4,57.82525539]
[1672784290055,11.36288763,1211.5,1211.4,57.82525539]
[1672784290236,3.15818107,1211.5,1211.4,57.82525539]
[1672784290442,7.59391513,1211.5,1211.4,57.82525539]
[1672784290687,7.65591513,1211.5,1211.4,57.82525539]
[1672784292048,11.36288763,1211.5,1211.4,57.82525539]
[1672784292266,6.86515357,1211.5,1211.4,57.82525539]
[1672784292995,6.25157468,1211.5,1211.4,57.82525539]
[1672784293213,10.74930523,1211.5,1211.4,57.82525539]
[1672784293531,7.65591513,1211.5,1211.4,57.82525539]
[1672784296070,10.74934538,1211.5,1211.4,57.82525539]
[1672784296214,6.25161132,1211.5,1211.4,57.82525539]
[1672784296425,10.74934538,1211.5,1211.4,57.82525539]
[1672784296864,7.65591513,1211.5,1211.4,57.82525539]
[1672784304576,3.15818107,1211.5,1211.4,57.82525539]
[1672784304725,3.09618107,1211.5,1211.4,63.6094695]
[1672784305620,7.59391513,1211.5,1211.4,63.6094695]
[1672784305790,7.65591513,1211.5,1211.4,63.6094695]
[1672784306472,11.36288763,1211.5,1211.4,63.6094695]
[1672784306632,6.86515357,1211.5,1211.4,63.6094695]
[1672784306830,11.36288763,1211.5,1211.4,63.6094695]
[1672784307250,6.86515357,1211.5,1211.4,63.6094695]
[1672784309705,11.36288763,1211.5,1211.4,63.6094695]
[1672784317707,11.36288763,1211.5,1211.4,57.82525539]
[1672784321813,8.88770769,1211.5,1211.4,57.82525539]
[1672784330373,4.38997363,1211.5,1211.4,57.82525539]
[1672784330722,4.32797363,1211.5,1211.4,57.822648]
[1672784336128,0.62100113,1211.5,1211.4,57.822648]
[1672784336428,4.32797363,1211.5,1211.4,63.60660137]
[1672784336589,0.62100113,1211.5,1211.4,63.60660137]
[1672784338053,4.32797363,1211.5,1211.4,63.60660137]
[1672784343785,4.32797363,1211.5,1211.4,63.52660137]
[1672784347739,0.62100113,1211.5,1211.4,63.52660137]
[1672784349336,4.32797363,1211.5,1211.4,63.52660137]
[1672784350465,0.62100113,1211.5,1211.4,63.52660137]
[1672784353977,0.56604811,1211.5,1211.4,63.52660137]
[1672784363347,3.65962523,1211.5,1211.4,63.52660137]
[1672784372439,0.56604811,1211.5,1211.4,63.52660137]
[1672784373127,3.66004995,1211.5,1211.4,63.52660137]
[1672784373495,0.56604811,1211.5,1211.4,63.52660137]
[1672784378410,0.56604811,1211.5,1211.4,63.52417771]
[1672784378725,0.56604811,1211.5,1211.4,57.74022434]
[1672784379717,4.27302061,1211.5,1211.4,57.74022434]
[1672784380135,0.56604811,1211.5,1211.4,57.69022434]
[1672784380346,4.27302061,1211.5,1211.4,57.69022434]
[1672784388571,0.56604811,1211.5,1211.4,57.69022434]
[1672784388790,4.27302061,1211.5,1211.4,57.69022434]
[1672784399493,4.27502061,1211.5,1211.4,57.68722434]
[1672784399703,4.27302061,1211.5,1211.4,57.69022434]
[1672784403144,3.66113966,1211.5,1211.4,57.69022434]
[1672784404704,3.66113966,1211.5,1211.4,57.68719031]
[1672784406658,0.56604811,1211.5,1211.4,57.68719031]
[1672784407142,3.66094455,1211.5,1211.4,57.68719031]
[1672784407768,0.56604811,1211.5,1211.4,57.68719031]
[1672784416269,6.13603291,1211.5,1211.4,75.45050369]
[1672784416430,4.39366486,1211.5,1211.4,75.68050369]
[1672784416648,4.33166486,1211.5,1211.4,76.30010369]
[1672784416858,4.77148429,1211.5,1211.4,76.30010369]
[1672784419913,4.77148429,1211.5,1211.4,76.07010369]
[1672784423833,4.77148429,1211.5,1211.4,75.45050369]
[1672784426848,2.29629112,1211.5,1211.4,75.45050369]
[1672784428376,4.77148429,1211.5,1211.4,75.45050369]
[1672784437152,4.77148429,1211.5,1211.4,75.44663711]
[1672784438111,2.29629112,1211.5,1211.4,75.44663711]
[1672784439382,4.77148429,1211.5,1211.4,75.44663711]
[1672784448108,8.62774784,1211.5,1211.4,0.05283425]
[1672784448307,9.93376468,1211.5,1211.2,0.41869252]
[1672784448579,3.08874014,1211.3,1211.2,0.41869252]
[1672784448889,5.60856457,1211.3,1211.2,0.41869252]
[1672784449103,5.67056457,1211.3,1211.2,0.41869252]
[1672784449259,8.75602913,1211.3,1211.2,0.41869252]
[1672784451420,11.22258693,1211.3,1211.2,0.41869252]
[1672784452201,8.75602913,1211.3,1211.2,10.32621252]
[1672784452417,8.75602913,1211.3,1211.2,10.37904677]
[1672784453005,8.75602913,1211.3,1211.2,0.47152677]
[1672784453164,11.22228809,1211.3,1211.2,20.23373252]
[1672784453366,11.22228809,1211.3,1211.2,20.28656677]
[1672784453582,8.13682353,1211.3,1211.2,20.28656677]
[1672784455183,9.98448695,1211.3,1211.2,20.28656677]
[1672784456013,9.98444354,1211.3,1211.2,20.28656677]
[1672784456855,8.13682353,1211.3,1211.2,10.37904677]
[1672784457064,11.22228809,1211.3,1211.2,10.37904677]
[1672784457257,9.98371828,1211.3,1211.2,10.37904677]
[1672784458454,11.22228809,1211.3,1211.2,10.37904677]
[1672784459253,8.13682353,1211.3,1211.2,10.37904677]
[1672784459464,8.13682353,1211.3,1211.2,10.37504734]
[1672784459692,9.98309516,1211.3,1211.2,10.37504734]
[1672784459866,11.22228809,1211.3,1211.2,10.37504734]
[1672784461585,8.13682353,1211.3,1211.2,10.37504734]
[1672784462218,8.13682353,1211.3,1211.2,20.28256734]
[1672784462547,11.22228809,1211.3,1211.2,20.28256734]
[1672784463228,8.13682353,1211.3,1211.2,20.28256734]
[1672784465192,9.98218035,1211.3,1211.2,20.28256734]
[1672784465406,9.98218139,1211.3,1211.2,20.28256734]
[1672784465767,8.13682353,1211.3,1211.2,20.28256734]
[1672784466086,8.13682353,1211.3,1211.2,10.37504734]
[1672784466293,11.22228809,1211.3,1211.2,10.37504734]
[1672784467166,8.13682353,1211.3,1211.2,10.37504734]
[1672784468626,8.13682353,1211.3,1211.2,20.28256734]
[1672784468904,8.13682353,1211.3,1211.2,10.37504734]
[1672784469077,8.13682353,1211.3,1211.2,20.28256734]
[1672784472431,9.98170573,1211.3,1211.2,20.28256734]
[1672784472958,11.22228809,1211.3,1211.2,20.28256734]
[1672784473291,3.65587573,1211.3,1211.2,20.28256734]
[1672784473449,8.07482353,1211.3,1211.2,20.28256734]
[1672784473660,8.13682353,1211.3,1211.2,20.28256734]
[1672784474178,11.22228809,1211.3,1211.2,20.28256734]
[1672784474649,6.74134029,1211.3,1211.2,20.28256734]
[1672784474864,10.09467132,1211.3,1211.2,20.28256734]
[1672784475078,2.52825896,1211.3,1211.2,20.28256734]
[1672784475296,8.7924011,1211.3,1211.2,20.28256734]
[1672784475437,8.8544011,1211.3,1211.2,20.28256734]
[1672784477157,7.00920676,1211.3,1211.2,20.28256734]
[1672784479268,10.09467132,1211.3,1211.2,20.28256734]
[1672784481137,7.62841236,1211.3,1211.2,20.28256734]
[1672784481348,10.09098566,1211.3,1211.2,20.28256734]
[1672784481921,10.0909914,1211.3,1211.2,20.28256734]
[1672784482128,7.62841236,1211.3,1211.2,20.28256734]
[1672784482344,7.63041236,1211.3,1211.2,20.27956734]
[1672784482535,7.62841236,1211.3,1211.2,20.28256734]
[1672784482745,7.63041236,1211.3,1211.2,20.27956734]
[1672784482910,7.62841236,1211.3,1211.2,20.28256734]
[1672784483606,8.76252822,1211.3,1211.2,0.46752734]
[1672784483759,9.37612421,1211.3,1211.2,0.41469309]
[1672784483979,10.00324346,1211.3,1211.2,0.41469309]
[1672784484418,10.00324346,1211.3,1211.2,0.41140752]
[1672784487127,10.628153,1211.3,1211.2,0.41140752]
[1672784492494,30.441573,1211.3,1211.2,0.41140752]
[1672784493333,20.534863,1211.3,1211.2,0.41140752]
[1672784493544,40.348283,1211.3,1211.2,0.41140752]
[1672784494215,30.441573,1211.3,1211.2,0.41140752]
[1672784494928,20.534863,1211.3,1211.2,0.41140752]
[1672784496081,30.441573,1211.3,1211.2,0.41140752]
[1672784496551,20.534863,1211.3,1211.2,0.41140752]
[1672784497535,30.441573,1211.3,1211.2,0.41140752]
[1672784497765,20.534863,1211.3,1211.2,0.41140752]
[1672784498161,10.628153,1211.3,1211.2,0.41140752]
[1672784498375,20.534863,1211.3,1211.2,0.41140752]
[1672784498649,10.628153,1211.3,1211.2,0.41140752]
[1672784503253,20.534863,1211.3,1211.2,0.41140752]
[1672784504554,45.92360366,1211.3,1211.2,0.41140752]
[1672784504726,40.33614903,1211.3,1211.2,0.41140752]
[1672784505374,26.11018366,1211.3,1211.2,0.41140752]
[1672784506123,30.42914576,1211.3,1211.2,0.41140752]
[1672784507626,20.52243576,1211.3,1211.2,0.41140752]
[1672784507831,9.99602576,1211.3,1211.2,0.41140752]
[1672784508247,9.99602576,1211.3,1211.2,0.40803686]
[1672784508248,4.3809621,1211.3,1211.2,0.40803686]
[1672784508419,4.3809621,1211.3,1211.2,4.88898466]
[1672784508420,3.70180163,1211.3,1211.2,4.88898466]
[1672784508629,3.70180163,1211.3,1211.2,14.79650466]
[1672784508630,8.18274943,1211.3,1211.2,14.79650466]
[1672784508844,8.24474943,1211.3,1211.2,14.84933891]
[1672784509517,8.24474943,1211.3,1211.2,10.36839111]
[1672784511193,8.24474943,1211.3,1211.2,20.27591111]